bitfinex/quotes_ETHUSD_20250620
["timestamp","ask_amount","ask_price","bid_price","bid_amount"]
[1750439908955,1.21956704,2480.0,2479.9,0.63471074]
[1750439909191,58.89723895,2480.0,2479.9,0.63471074]
[1750439909495,60.66923895,2480.0,2479.9,0.63471074]
[1750439909674,61.04067019,2480.0,2479.9,0.63471074]
[1750439910078,61.0406887,2480.0,2479.9,0.63471074]
[1750439910276,61.04068639,2480.0,2479.9,0.63471074]
[1750439911084,61.04068114,2480.0,2479.9,0.63471074]
[1750439911757,30.66923895,2480.0,2479.9,0.63471074]
[1750439911958,61.04067972,2480.0,2479.9,0.63471074]
[1750439912906,60.66923895,2480.0,2479.9,0.63471074]
[1750439913284,61.04010661,2480.0,2479.9,0.63471074]
[1750439914118,61.65376956,2480.0,2479.9,0.63471074]
[1750439914730,61.65377222,2480.0,2479.9,0.63471074]
[1750439914934,61.28286905,2480.0,2479.9,0.63471074]
[1750439915437,61.6533886,2480.0,2479.9,0.63471074]
[1750439915741,61.6533886,2480.0,2479.7,0.68181818]
[1750439915742,14.03242066,2479.9,2479.7,0.68181818]
[1750439916037,52.59907031,2479.9,2479.8,0.10592149]
[1750439916598,52.22855076,2479.9,2479.8,0.10592149]
[1750439916794,48.56641104,2479.9,2479.8,0.10592149]
[1750439917000,49.3555,2479.9,2479.8,0.10592149]
[1750439917225,53.38792066,2479.9,2479.8,0.10592149]
[1750439917640,54.37182592,2479.9,2479.8,0.10592149]
[1750439917842,44.09178327,2479.8,2479.7,0.68181818]
[1750439918234,44.46246878,2479.8,2479.7,0.68181818]
[1750439918545,46.53994728,2479.8,2479.7,0.68181818]
[1750439919047,45.85929888,2479.8,2479.7,0.68181818]
[1750439919541,45.85924397,2479.8,2479.7,0.68181818]
[1750439919910,45.24561387,2479.8,2479.7,0.68181818]
[1750439921153,45.24548053,2479.8,2479.7,0.68181818]
[1750439921645,44.87498327,2479.8,2479.7,0.68181818]
[1750439921851,45.24575027,2479.8,2479.7,0.68181818]
[1750439922050,47.66575027,2479.8,2479.7,0.68181818]
[1750439922348,47.66574791,2479.8,2479.7,0.68181818]
[1750439923051,17.66574791,2479.8,2479.7,0.68181818]
[1750439923355,47.66575196,2479.8,2479.7,0.68181818]
[1750439924160,47.51762233,2479.8,2479.7,0.68181818]
[1750439924361,48.50230012,2479.8,2479.7,0.68181818]
[1750439925159,48.50227521,2479.8,2479.7,0.68181818]
[1750439925360,16.51064589,2479.7,2479.6,0.03175587]
[1750439925652,16.51064589,2479.7,2479.5,0.15176456]
[1750439925653,60.52838942,2479.6,2479.5,0.15176456]
[1750439925864,61.12205483,2479.6,2479.5,0.15176456]
[1750439926068,62.50636266,2479.6,2479.5,1e-08]
[1750439926420,7.30803384,2479.4,2479.3,0.79173554]
[1750439926636,7.30803384,2479.4,2479.0,0.87024794]
[1750439926637,14.03339652,2479.3,2479.0,0.87024794]
[1750439926834,61.7365189,2479.3,2479.0,0.87024794]
[1750439927372,62.5366189,2479.3,2479.0,0.87024794]
[1750439927576,62.53682006,2479.3,2479.0,0.87024794]
[1750439927723,62.53682006,2479.3,2479.2,0.69725909]
[1750439927917,47.28655921,2479.2,2479.1,0.19692488]
[1750439928117,55.23739607,2479.2,2479.1,0.19692488]
[1750439928338,55.23739607,2479.2,2479.0,0.87024794]
[1750439928339,16.45372191,2479.1,2479.0,0.87024794]
[1750439928521,47.10582867,2479.1,2479.0,0.87024794]
[1750439929774,47.10658645,2479.1,2479.0,0.87024794]
[1750439929980,47.10658545,2479.1,2479.0,0.87024794]
[1750439930543,16.45388463,2479.0,2478.9,0.9016529]
[1750439930774,68.48094449,2479.0,2478.9,0.9016529]
[1750439931018,68.48092504,2479.0,2478.9,0.9016529]
[1750439931282,38.48092504,2479.0,2478.9,0.9016529]
[1750439931481,68.48078661,2479.0,2478.9,0.9016529]
[1750439931643,46.45404735,2478.9,2478.7,0.16760021]
[1750439931848,64.22390252,2478.8,2478.7,0.16760021]
[1750439932154,44.8654984,2478.5,2478.4,0.14012497]
[1750439932351,44.8654984,2478.5,2478.2,0.5411157]
[1750439932352,46.5127612,2478.4,2478.2,0.5411157]
[1750439932553,48.84130287,2478.4,2478.2,0.5411157]
[1750439932874,61.43806407,2478.4,2478.2,0.5411157]
[1750439933080,61.06617616,2478.4,2478.2,0.5411157]
[1750439933281,61.06617616,2478.4,2477.6,0.6196281]
[1750439933282,0.0258,2477.4,2476.7,2.86612403]
[1750439933466,0.0258,2476.4,2476.3,1.18870242]
[1750439933665,0.0258,2476.4,2476.1,0.0581]
[1750439933666,2.42,2476.3,2476.1,0.0581]
[1750439933901,0.41084882,2476.3,2476.2,4.09641466]
[1750439934043,10.0,2477.0,2476.6,0.0081]
[1750439934244,10.0,2476.8,2476.2,0.43821159]
[1750439934473,0.36984309,2476.7,2476.2,0.43821159]
[1750439934677,10.0,2476.5,2476.3,4.03824272]
[1750439934898,0.39562622,2476.9,2476.4,0.44764543]
[1750439935113,7.41911682,2476.8,2476.4,0.44764543]
[1750439935402,7.41911682,2476.8,2476.2,0.43821159]
[1750439935403,10.37011682,2476.7,2476.2,4.038446]
[1750439935605,10.0,2476.5,2476.3,4.03827492]
[1750439935803,17.053,2476.4,2476.3,4.93183123]
[1750439936005,6.45671699,2477.3,2476.6,4.03770075]
[1750439936006,7.052,2476.7,2476.6,4.03770075]
[1750439936216,17.052,2476.7,2476.6,0.0581]
[1750439936510,17.052,2476.7,2476.6,4.09589374]
[1750439936685,8.50298564,2477.4,2476.6,4.09589374]
[1750439936686,4.46640158,2477.4,2477.0,4.03702803]
[1750439936866,7.42037932,2477.3,2477.1,0.0581]
[1750439937068,10.37037932,2477.2,2477.1,0.0581]
[1750439937301,10.36988108,2477.2,2477.1,0.0581]
[1750439937508,10.36988108,2477.2,2476.8,0.0581]
[1750439937736,10.0,2477.0,2476.8,4.09554576]
[1750439938056,10.39882988,2477.3,2476.8,0.0581]
[1750439938209,10.0,2476.9,2476.8,0.0581]
[1750439938408,10.0,2476.9,2476.8,4.0955677]
[1750439938602,10.0,2476.9,2476.8,4.58604447]
[1750439940644,10.0,2476.9,2476.7,0.8092]
[1750439940832,7.044,2476.8,2476.7,0.8092]
[1750439941334,7.41356451,2476.8,2476.7,0.8092]
[1750439941739,10.0,2476.7,2476.5,4.03786869]
[1750439941944,17.41343348,2476.8,2476.4,0.8092]
[1750439941945,7.041,2476.6,2476.4,0.8092]
[1750439942115,10.0,2476.5,2476.4,4.84724215]
[1750439942337,10.0,2476.5,2476.4,0.8092]
[1750439942641,10.0,2476.5,2476.4,4.84731985]
[1750439943143,10.0,2476.5,2476.2,4.09642836]
[1750439943144,10.36917214,2476.5,2476.2,4.09642836]
[1750439943343,10.0,2476.3,2476.1,4.03848614]
[1750439943509,14.01758089,2476.6,2476.2,4.038446]
[1750439943510,10.0,2476.5,2476.2,4.038446]
[1750439943709,10.0,2476.3,2476.2,4.038446]
[1750439944109,10.3691057,2476.3,2476.2,4.038446]
[1750439944337,10.3691057,2476.3,2476.0,4.88335866]
[1750439944646,10.0,2476.1,2476.0,4.88335866]
[1750439944862,10.3691057,2476.1,2476.0,4.05427348]
[1750439945004,0.3691057,2476.1,2476.0,4.11237348]
[1750439945210,7.4021057,2476.1,2476.0,4.11237348]
[1750439945428,7.4021057,2476.1,2476.0,4.05427348]
[1750439945840,7.038,2476.1,2476.0,4.90667348]
[1750439946031,7.40716855,2476.1,2476.0,6.1423059]
[1750439946418,7.038,2476.1,2476.0,6.1423059]
[1750439947153,7.038,2476.1,2476.0,6.0842059]
[1750439947322,7.038,2476.1,2476.0,4.84857348]
[1750439947522,7.038,2476.1,2476.0,4.90667348]
[1750439948865,7.038,2476.1,2476.0,4.05427348]
[1750439949569,7.038,2476.1,2476.0,0.01550127]
[1750439949570,7.40714618,2476.1,2476.0,0.01550127]
[1750439949767,7.40714618,2476.1,2476.0,4.05427348]
[1750439949918,7.038,2476.1,2476.0,4.05427348]
[1750439950118,7.40713274,2476.1,2476.0,4.05427348]
[1750439950335,7.40709467,2476.1,2476.0,4.05427348]
[1750439950923,7.40709467,2476.1,2476.0,4.11487348]
[1750439951549,7.40741279,2476.1,2476.0,4.05427348]
[1750439951944,7.40740885,2476.1,2476.0,4.05427348]
[1750439952765,10.36940885,2476.1,2476.0,4.11487348]
[1750439952935,7.049,2476.6,2476.5,4.87065679]
[1750439953141,7.41896233,2476.6,2476.5,4.93125679]
[1750439953544,7.41896233,2476.6,2476.5,4.87065679]
[1750439953757,17.41896233,2476.6,2476.5,4.87065679]
[1750439954055,17.41896233,2476.6,2476.5,4.03795679]
[1750439955360,17.41911046,2476.6,2476.5,4.03795679]
[1750439955662,17.41911046,2476.6,2476.3,4.0382331]
[1750439955663,10.0,2476.5,2476.4,4.0380322]
[1750439955865,0.37010257,2476.5,2476.4,4.0380322]
[1750439956558,7.049,2476.6,2476.5,4.03795679]
[1750439956738,7.41972439,2476.6,2476.5,4.03795679]
[1750439956941,7.41971944,2476.6,2476.5,4.03795679]
[1750439957260,10.0,2476.5,2476.4,4.03802317]
[1750439957460,10.37072463,2476.5,2476.4,4.03802317]
[1750439957666,10.37072432,2476.5,2476.4,4.03802317]
[1750439957834,10.37072432,2476.5,2476.0,0.01550127]
[1750439958034,10.261,2476.6,2476.2,4.038446]
[1750439958035,10.0,2476.3,2476.2,4.038446]
[1750439958239,10.37072432,2476.3,2476.2,4.038446]
[1750439958745,10.3713256,2476.3,2476.2,4.931746]
[1750439959077,10.0,2476.8,2476.7,4.03760666]
[1750439959252,7.63920926,2476.8,2476.2,0.8933]
[1750439959424,10.42988079,2476.7,2476.5,0.00451211]
[1750439959759,17.41536782,2476.6,2476.5,0.00451211]
[1750439960058,17.41536782,2476.6,2476.5,4.0424689]
[1750439960059,10.37136782,2476.6,2476.5,4.0424689]
[1750439960221,17.41536782,2476.6,2476.5,4.0424689]
[1750439960424,10.37136782,2476.6,2476.5,4.0424689]
[1750439960626,7.41436782,2476.6,2476.5,5.68671664]
[1750439960922,7.043,2476.6,2476.5,6.23671664]
[1750439961121,0.37267853,2476.6,2476.5,6.23671664]
[1750439961341,7.044,2476.6,2476.5,6.23671664]
[1750439961526,7.044,2476.6,2476.5,4.8180689]
[1750439961727,7.044,2476.6,2476.5,4.0424689]
[1750439962169,7.1025,2476.6,2476.5,0.00451211]
[1750439962463,68.74450357,2476.6,2476.5,0.00451211]
[1750439962758,68.74450357,2476.6,2476.0,0.01550127]
[1750439962759,2.4785,2476.4,2476.0,0.01550127]
[1750439962960,0.0585,2476.2,2476.0,0.01550127]
[1750439963158,10.65468026,2476.2,2476.0,0.01550127]
[1750439963363,10.0585,2476.2,2476.0,4.05426524]
[1750439963527,9.5585,2476.2,2476.0,0.01550127]
[1750439963723,3.07470781,2476.1,2476.0,0.01550127]
[1750439964129,3.89110781,2476.1,2476.0,0.01550127]
[1750439964330,7.92971691,2476.1,2476.0,0.01550127]
[1750439964533,15.07071691,2476.1,2476.0,0.01550127]
[1750439964832,17.00671691,2476.1,2476.0,0.01550127]
[1750439965267,12.96810781,2476.1,2476.0,0.01550127]
[1750439965489,57.00671691,2476.1,2476.0,0.01550127]
[1750439965633,47.86837221,2476.0,2475.9,1.53099462]
[1750439965836,47.86869847,2475.8,2475.7,0.87086777]
[1750439966065,68.85691266,2475.8,2475.7,0.87086777]
[1750439966282,69.08024004,2475.8,2475.7,0.87086777]
[1750439966443,61.33627936,2475.8,2475.7,0.87086777]
[1750439966780,71.01782128,2475.8,2475.7,0.87086777]
[1750439966975,55.47277135,2475.8,2475.7,0.87086777]
[1750439967133,55.47277135,2475.8,2475.6,1.78528926]
[1750439967134,4.03926162,2475.7,2475.6,1.78528926]
[1750439967330,49.73955778,2475.7,2475.6,1.78528926]
[1750439967627,53.78680311,2475.7,2475.6,1.78528926]
[1750439968464,54.53920311,2475.7,2475.6,1.78528926]
[1750439968676,54.53915425,2475.7,2475.6,1.78528926]
[1750439968831,54.53915931,2475.7,2475.6,1.78528926]
[1750439969037,50.50389769,2475.7,2475.6,1.78528926]
[1750439969236,49.9089,2475.7,2475.6,1.78528926]
[1750439969438,0.59420158,2475.7,2475.6,1.78528926]
[1750439969638,7.164,2475.7,2475.6,5.82471404]
[1750439970872,31.936,2476.0,2475.8,4.03909847]
[1750439971044,47.78042934,2475.9,2475.8,4.03909847]
[1750439971578,30.59442934,2475.9,2475.8,4.03909847]
[1750439971892,30.0585,2475.8,2475.6,1.78528926]
[1750439972042,9.123,2475.7,2475.6,5.82466861]
[1750439972538,24.87228089,2476.1,2475.9,4.03890357]
[1750439972743,10.0,2475.9,2475.8,4.03901981]
[1750439972935,30.0,2476.0,2475.9,4.03893533]
[1750439973140,0.59466347,2476.0,2475.9,4.03893533]
[1750439973465,30.0,2476.2,2476.1,4.0386091]
[1750439973662,7.183,2476.2,2475.6,1.78528926]
[1750439973967,4.03926162,2475.7,2475.6,1.78528926]
[1750439974170,54.57821504,2475.7,2475.6,1.78528926]
[1750439974480,54.58221504,2475.7,2475.6,1.78528926]
[1750439975064,50.54295342,2475.7,2475.6,1.78528926]
[1750439975276,41.42095342,2475.7,2475.6,1.78528926]
[1750439975478,7.84,2476.3,2475.8,4.03905521]
[1750439975638,7.193,2476.2,2476.1,4.03852266]
[1750439975839,0.0585,2476.0,2475.6,2.54698926]
[1750439976171,10.0,2475.8,2475.6,1.78528926]
[1750439976381,17.192,2475.7,2475.6,5.82471404]
[1750439977000,17.193,2475.7,2475.6,5.82471404]
[1750439977486,18.0306,2475.7,2475.6,0.60214422]
[1750439977670,18.0306,2475.7,2475.5,0.91784718]
[1750439977671,6.45942478,2475.6,2475.5,0.91784718]
[1750439977873,34.81885115,2475.4,2475.3,0.28481243]
[1750439978073,57.20120834,2475.4,2475.3,0.05744255]
[1750439978274,4.09724079,2475.1,2475.0,0.19002891]
[1750439978475,34.66583808,2475.1,2475.0,0.19002891]
[1750439978675,51.4006823,2475.1,2475.0,0.19002891]
[1750439978995,51.4006823,2475.1,2475.0,4.23043295]
[1750439978996,21.12482511,2475.1,2475.0,4.23043295]
[1750439979201,10.0,2475.1,2475.0,4.23043295]
[1750439979411,17.206,2475.1,2475.0,0.19002891]
[1750439979705,10.0,2475.1,2475.0,4.23043295]
[1750439979995,10.0,2475.1,2475.0,0.19002891]
[1750439979996,17.215,2475.1,2475.0,0.19002891]
[1750439980168,40.0,2475.1,2475.0,0.19002891]
[1750439980376,47.24,2475.1,2475.0,0.19002891]
[1750439980586,18.0527,2475.1,2475.0,0.19002891]
[1750439980802,46.51740404,2475.0,2474.8,0.98863636]
[1750439981002,60.75763394,2475.0,2474.8,0.98863636]
[1750439981305,54.55905305,2475.0,2474.8,0.98863636]
[1750439981597,42.69964901,2475.0,2474.8,0.98863636]
[1750439981806,7.841,2475.0,2474.8,0.98863636]
[1750439982164,41.93840404,2475.0,2474.8,0.98863636]
[1750439982476,51.93840404,2475.0,2474.8,0.98863636]
[1750439982804,45.07541499,2475.0,2474.8,0.98863636]
[1750439983099,52.97241499,2475.0,2474.8,0.98863636]
[1750439984109,53.52241499,2475.0,2474.8,0.98863636]
[1750439984307,53.5221953,2475.0,2474.8,0.98863636]
[1750439984480,67.5397681,2475.0,2474.8,0.98863636]
[1750439984675,37.5397681,2475.0,2474.8,0.98863636]
[1750439985003,37.5397681,2475.0,2474.2,0.13291708]
[1750439985004,44.8105471,2474.3,2474.2,0.13291708]
[1750439985181,52.7655471,2474.3,2474.2,0.13291708]
[1750439985380,52.7655471,2474.3,2471.0,4.95]
[1750439985381,0.769,2472.7,2471.0,4.95]
[1750439985567,0.057,2471.1,2471.0,4.95]
[1750439985768,7.888,2471.1,2471.0,4.95]
[1750439986077,45.29293727,2471.1,2471.0,1.271]
[1750439986401,30.46465649,2471.1,2471.0,1.271]
[1750439986565,30.40765649,2471.1,2471.0,1.221]
[1750439986766,18.32265649,2471.1,2471.0,1.221]
[1750439986969,30.0,2470.5,2470.4,0.29047779]
[1750439987161,30.0,2470.5,2470.3,0.2200711]
[1750439987162,30.057,2470.4,2470.3,0.2200711]
[1750439987366,14.01758089,2470.9,2470.3,0.2200711]
[1750439987605,30.0,2470.7,2470.3,0.2200711]
[1750439987777,30.0,2470.7,2470.2,0.24203521]
[1750439987778,0.057,2470.3,2465.6,7.55340662]
[1750439987979,30.0,2469.8,2468.1,4.05166473]
[1750439988209,30.0,2469.8,2466.5,2.850363]
[1750439988210,30.0,2469.1,2467.5,2.461]
[1750439988408,10.5866066,2469.7,2466.4,10.761035]
[1750439988409,0.5,2469.7,2467.6,2.461]
[1750439988610,30.0,2469.2,2467.3,2.461]
[1750439988812,0.05063562,2469.1,2467.5,14.01758089]
[1750439989104,0.05063562,2469.1,2466.9,8.375]
[1750439989105,1.2629,2468.6,2465.5,0.20210828]
[1750439989303,1.2629,2468.6,2464.7,10.519]
[1750439989304,1.2629,2468.6,2466.6,11.05443294]
[1750439989305,0.5,2468.2,2466.6,11.05443294]
[1750439989516,0.05064765,2468.1,2466.6,11.05443294]
[1750439989692,0.5,2468.1,2466.7,2.546]
[1750439989868,10.0,2467.9,2466.8,0.41000202]
[1750439990072,10.0,2467.5,2465.9,4.05531448]
[1750439990271,0.38399263,2467.4,2466.4,0.0571]
[1750439990587,0.33332653,2467.3,2466.1,0.0571]
[1750439990911,0.33332653,2467.3,2465.9,4.05531448]
[1750439990912,0.38391799,2467.3,2466.3,0.0571]
[1750439991071,0.55066796,2467.2,2466.2,0.8115]
[1750439991268,0.05066796,2467.2,2466.4,0.0571]
[1750439991481,0.05066796,2467.2,2467.1,4.11044198]
[1750439991708,0.33332653,2467.3,2467.2,0.8686]
[1750439992015,0.33332653,2467.3,2467.2,0.8115]
[1750439992193,0.55065441,2467.7,2466.9,2.839]
[1750439992372,30.0,2467.3,2464.8,0.8115]
[1750439992572,0.5,2466.9,2466.1,0.8686]
[1750439992772,0.5,2466.6,2466.1,0.8115]
[1750439993005,0.5,2467.0,2466.3,4.05459593]
[1750439993216,4.05312389,2467.3,2466.6,0.0571]
[1750439993371,4.05349232,2467.1,2466.1,0.8115]
[1750439993575,4.05349232,2467.1,2465.6,10.526]
[1750439993576,0.5,2466.5,2465.8,0.0571]
[1750439993808,0.5,2466.5,2465.4,0.0571]
[1750439994010,0.05068497,2466.9,2465.9,11.05443294]
[1750439994174,0.5,2466.8,2465.6,0.0571]
[1750439994376,0.5,2466.9,2465.9,0.0571]
[1750439994582,10.5,2466.9,2466.1,4.0548905]
[1750439994776,4.05315575,2467.3,2466.1,4.0548905]
[1750439994777,0.5,2466.7,2466.1,2.84]
[1750439994971,10.0,2467.3,2466.1,2.84]
[1750439994972,0.5,2467.0,2466.4,4.05436605]
[1750439995211,0.5,2467.0,2466.1,6.89493693]
[1750439995397,0.5,2467.0,2466.2,0.0571]
[1750439995722,0.5,2467.0,2466.3,0.0571]
[1750439995925,0.5,2466.8,2466.3,4.05465677]
[1750439996225,0.5,2466.8,2466.5,0.0571]
[1750439996635,0.5,2466.8,2466.4,0.0571]
[1750439996782,0.5,2466.8,2466.5,4.05430573]
[1750439996978,0.5,2466.8,2466.4,0.0571]
[1750439997228,0.5,2466.3,2465.9,0.0571]
[1750439997391,0.057,2467.0,2466.0,0.0571]
[1750439997392,0.5,2466.6,2466.0,0.0571]
[1750439997727,0.5,2466.3,2466.0,0.0571]
[1750439998223,0.5,2466.3,2466.1,4.05482321]
[1750439998445,0.5,2466.3,2465.7,0.8115]
[1750439998446,11.05443294,2466.4,2464.9,0.789]
[1750439998578,0.86258004,2466.7,2464.9,0.789]
[1750439998579,11.05443294,2465.7,2464.9,0.789]
[1750439998780,0.020769,2466.1,2465.1,0.789]
[1750439998986,0.020769,2466.1,2466.0,4.11225004]
[1750439999181,0.5,2467.5,2466.6,0.0559]
[1750439999418,0.5,2467.3,2466.6,0.0559]
[1750439999599,11.05443294,2467.8,2466.7,2.842]
[1750439999802,0.5,2467.3,2466.8,0.28979]
[1750439999978,0.5,2467.3,2466.8,0.34569]
[1750440000430,11.55443294,2467.0,2466.7,2.842]
[1750440000639,11.55443294,2467.0,2466.0,0.789]
[1750440000640,0.5,2466.5,2466.0,0.789]
[1750440000945,0.5,2466.5,2465.4,0.40164063]
[1750440000946,5.42487241,2465.5,2465.4,0.40164063]
[1750440001234,5.42487241,2465.5,2461.0,0.0571]
[1750440001235,0.057,2463.1,2461.0,0.0571]
[1750440001383,0.5,2463.2,2462.3,0.33902554]
[1750440001587,15.11437288,2463.1,2462.3,0.80957367]
[1750440001830,11.05443294,2462.7,2462.3,0.33902554]
[1750440002030,4.06007486,2463.1,2462.2,0.24801139]
[1750440002031,31.26778839,2462.6,2462.2,0.24801139]
[1750440002332,1.07012172,2462.8,2462.2,0.24801139]
[1750440002549,10.0619,2463.2,2462.2,0.24801139]
[1750440002550,0.057,2463.6,2463.2,4.05960099]
[1750440002824,0.057,2463.6,2462.5,0.0571]
[1750440002825,11.05443294,2463.4,2462.4,4.06107862]
[1750440003031,0.5,2463.2,2462.5,4.06079991]
[1750440003185,1.3119,2463.7,2462.4,3.027]
[1750440003386,0.8119,2464.2,2463.2,4.11685966]
[1750440003591,11.05443294,2464.7,2464.3,0.0571]
[1750440003592,0.55,2464.7,2464.3,0.0571]
[1750440003845,0.55,2464.7,2464.0,4.05841558]
[1750440003846,11.89341512,2464.6,2463.5,4.05926527]
[1750440004019,0.33898218,2464.5,2463.9,4.1155578]
[1750440004228,0.33898218,2464.5,2463.7,3.027]
[1750440004229,0.5,2464.4,2463.7,3.816]
[1750440004427,0.33863506,2464.3,2463.7,3.0841]
[1750440004632,0.33863506,2464.3,2463.0,0.789]
[1750440004633,0.83863506,2464.3,2463.0,0.789]
[1750440004793,0.33863506,2464.3,2464.2,4.11521216]
[1750440005288,1.06,2463.8,2462.4,0.789]
[1750440005494,1.06,2463.8,2463.1,4.05987786]
[1750440005495,0.83863506,2463.7,2463.1,4.05987786]
[1750440005721,0.33863506,2463.6,2463.4,4.05928448]
[1750440005925,0.33863506,2463.6,2462.9,4.06025417]
[1750440005926,0.33863506,2463.6,2463.5,4.05926527]
[1750440006539,0.33863506,2463.6,2463.5,14.90536527]
[1750440006540,0.23049666,2463.6,2463.5,14.90536527]
[1750440006716,0.5,2464.8,2463.5,14.90536527]
[1750440006717,0.5,2464.8,2464.7,4.11438891]
[1750440007019,0.8119,2465.6,2464.5,3.716]
[1750440007020,0.5,2464.9,2464.5,3.716]
[1750440007225,10.8119,2465.6,2464.5,3.716]
[1750440007226,0.5,2465.3,2464.5,3.716]
[1750440007426,13.19502633,2465.8,2464.5,3.716]
[1750440007427,0.5,2465.4,2464.9,0.55]
[1750440007622,0.5,2465.4,2464.7,0.55]
[1750440007851,0.5,2465.4,2465.3,4.05630146]
[1750440007999,0.057,2466.0,2464.7,0.6071]
[1750440008000,0.5,2465.9,2465.1,0.0571]
[1750440008200,0.0507013,2466.0,2465.1,0.0571]
[1750440008201,13.63802633,2466.4,2466.0,4.05515004]
[1750440008387,13.63802633,2466.4,2465.5,3.716]
[1750440008388,0.5,2466.4,2465.5,3.716]
[1750440008589,10.05068414,2466.6,2465.6,0.062]
[1750440008827,0.7749,2466.7,2465.1,0.0571]
[1750440008828,13.63802633,2465.9,2465.1,0.0571]
[1750440009009,10.7749,2466.7,2465.1,0.0571]
[1750440009010,13.63802633,2465.5,2465.1,0.0571]
[1750440009214,13.13802633,2465.6,2465.1,0.0571]
[1750440009511,0.05070719,2465.5,2465.1,0.6071]
[1750440009710,1.2749,2466.7,2465.1,0.0571]
[1750440009711,0.5,2465.7,2465.1,0.0571]
[1750440009935,0.5,2465.5,2465.1,0.0571]
[1750440010227,0.05069958,2465.9,2463.5,2.6740233]
[1750440010228,0.5,2464.7,2463.5,2.6740233]
[1750440010399,0.5,2464.4,2463.5,0.062]
[1750440010599,0.5,2464.2,2463.4,0.7636]
[1750440010802,0.05071793,2464.3,2463.6,4.05897685]
[1750440010803,0.5,2463.8,2463.6,4.05897685]
[1750440011005,0.5,2463.8,2463.4,4.05935041]
[1750440011006,0.5,2463.6,2463.0,0.062]
[1750440011221,0.5,2463.7,2463.6,4.0591005]
[1750440011409,0.5,2463.7,2463.5,4.05926151]
[1750440011603,0.5,2463.7,2463.4,4.05929789]
[1750440011787,0.5,2463.7,2463.3,4.05948793]
[1750440011987,0.05073589,2464.0,2463.3,4.05948793]
[1750440011988,0.5,2463.5,2463.4,4.05943005]
[1750440012229,0.5,2463.5,2463.0,0.4921649]
[1750440012603,13.13802633,2464.1,2462.9,4.85952308]
[1750440012604,0.5,2464.1,2463.7,4.05893574]
[1750440012811,0.5,2464.0,2463.2,0.062]
[1750440013008,0.5,2463.5,2463.1,3.717]
[1750440013192,0.5,2463.5,2463.4,4.05943005]
[1750440013396,0.5,2463.5,2463.2,4.05966428]
[1750440013613,1.3086,2463.5,2462.4,0.7632]
[1750440013850,0.5,2463.2,2462.5,1.13132]
[1750440014055,0.5,2463.0,2462.9,4.06025417]
[1750440014421,0.5,2462.8,2462.7,4.06058391]
[1750440015256,0.05075081,2463.3,2462.9,4.06025417]
[1750440015420,9.35986035,2464.4,2463.3,0.8054]
[1750440015421,0.5,2463.6,2463.3,0.8054]
[1750440015621,0.5,2463.1,2462.3,10.55]
[1750440015805,0.495,2463.1,2462.3,10.55]
[1750440016007,0.495,2462.9,2462.3,10.55]
[1750440016361,0.11185336,2463.5,2462.3,10.55]
[1750440016362,0.495,2462.6,2462.5,4.0609137]
[1750440016508,0.495,2463.2,2463.1,4.05992448]
[1750440016707,0.495,2463.1,2463.0,4.05999375]
[1750440018324,0.495,2463.1,2462.5,1.86719923]
[1750440018676,0.05074706,2463.6,2463.3,4.05957254]
[1750440018827,0.495,2463.8,2463.7,4.05893574]
[1750440019151,5.79701752,2464.0,2463.9,4.05860627]
[1750440019348,5.30201752,2464.0,2463.9,4.05860627]
[1750440019510,0.495,2464.5,2464.4,4.05778282]
[1750440020305,0.54571565,2465.2,2465.1,4.05663056]
[1750440020511,0.806,2465.3,2465.2,4.05631761]
[1750440020512,0.495,2465.3,2465.2,4.05631761]
[1750440020940,0.495,2465.5,2465.4,4.05613693]
[1750440021309,0.05069945,2466.1,2464.9,8.53505971]
[1750440021310,0.495,2465.0,2464.9,4.4781]
[1750440021508,0.495,2465.0,2464.9,8.53505971]
[1750440021709,0.495,2465.2,2464.9,8.59705971]
[1750440021913,0.495,2465.2,2465.1,4.05663056]
[1750440022347,0.11180295,2465.9,2464.5,0.8178]
[1750440022348,0.495,2464.7,2464.5,0.8178]
[1750440022555,0.495,2464.7,2464.3,4.05787236]
[1750440022556,0.495,2464.6,2464.3,4.05787236]
[1750440022727,0.495,2464.9,2464.8,4.05712431]
[1750440022932,0.495,2465.3,2464.7,4.05728891]
[1750440023226,0.495,2465.3,2465.2,4.056466]
[1750440023426,0.495,2464.5,2463.8,4.05876398]
[1750440023630,0.495,2464.5,2464.3,4.05784976]
[1750440023950,0.495,2464.5,2464.4,4.05778282]
[1750440024127,0.495,2464.5,2464.2,4.05798362]
[1750440024328,0.495,2463.6,2463.3,0.062]
[1750440024539,0.495,2464.1,2464.0,4.05844155]
[1750440024851,23.54702633,2464.8,2464.0,4.05844155]
[1750440024852,0.7957,2465.8,2465.4,4.05605139]
[1750440025066,0.495,2465.4,2464.9,4.05693518]
[1750440025363,0.495,2465.4,2465.3,4.05630146]
[1750440025672,0.05070114,2465.7,2464.8,4.11911565]
[1750440025673,0.495,2464.9,2464.8,0.062]
[1750440025825,0.495,2464.9,2464.8,4.05710189]
[1750440026531,0.495,2464.5,2464.4,4.05778282]
[1750440026948,0.495,2464.3,2464.2,4.05811216]
[1750440027157,0.495,2464.1,2463.8,10.556]
[1750440027358,0.495,2463.8,2463.1,0.7627]
[1750440027561,0.495,2463.5,2463.1,1.90077]
[1750440027825,0.495,2462.9,2462.2,4.62971139]
[1750440028135,0.495,2462.8,2462.7,4.06058391]
[1750440028368,0.495,2462.4,2462.2,4.62971139]
[1750440028568,0.495,2462.4,2462.3,4.06124355]
[1750440028925,0.0611,2462.3,2462.2,0.24801139]
[1750440029537,30.11185893,2462.3,2462.2,0.24801139]
[1750440029735,1.2467,2462.4,2462.3,4.06124355]
[1750440029937,1.2467,2462.4,2462.2,4.30941988]
[1750440029938,0.0611,2462.3,2462.2,0.24801139]
[1750440030170,32.90466326,2462.3,2462.2,0.24801139]
[1750440030451,0.495,2462.0,2461.3,4.0628397]
[1750440030652,0.495,2462.0,2461.9,4.0619034]
[1750440031024,0.495,2461.7,2461.6,0.2537517]
[1750440031874,30.5541,2461.7,2461.6,0.2537517]